fUSD/lending_fUSD_20250225
["ID","MTS","AMOUNT","RATE_DAILY","PERIOD"]
[354359867,1740441761883,500.0,0.00020866,50]
[354360367,1740442231951,-1000.0,0.00015859,2]
[354360369,1740442231961,-917.29626969,0.00016111,2]
[354360372,1740442231974,-82.70373031,0.00016111,2]
[354360375,1740442231984,-917.29626969,0.00016398,2]
[354360389,1740442232062,-82.70373031,0.00016398,2]
[354360391,1740442232073,-376.130461,0.00016438,2]
[354360392,1740442232084,-142.71440793,0.00016438,2]
[354360393,1740442232172,-461.27996607,0.00016438,2]
[354360394,1740442232184,-152.307001,0.00016438,2]
[354360395,1740442232195,-930.6761779,0.00016438,2]
[354360396,1740442232358,-2777.11754792,0.00016438,2]
[354360397,1740442232374,-376.130461,0.00016491,2]
[354360398,1740442232384,-603.994374,0.00016491,2]
[354360399,1740442232394,-376.130461,0.0001652,2]
[354360400,1740442232405,-603.994374,0.0001652,2]
[354360401,1740442232415,-376.130461,0.00016573,2]
[354360402,1740442232425,-603.994374,0.00016573,2]
[354360403,1740442232436,-152.307001,0.00016573,2]
[354360404,1740442232446,-667.43,0.00016573,2]
[354360405,1740442232457,-299.99,0.00016573,4]
[354360406,1740442232467,-150.99,0.00016573,2]
[354360407,1740442232478,-376.130461,0.00016602,2]
[354360408,1740442232489,-603.994374,0.00016602,2]
[354360409,1740442232499,-376.130461,0.00016655,2]
[354360410,1740442232509,-603.994374,0.00016655,2]
[354360412,1740442232520,-376.130461,0.00016684,2]
[354360414,1740442232531,-603.994374,0.00016684,2]
[354360416,1740442232542,-376.130461,0.00016767,2]
[354360418,1740442232552,-603.994374,0.00016767,2]
[354360420,1740442232562,-152.307001,0.00016767,2]
[354360422,1740442232572,-376.130461,0.00016849,2]
[354360424,1740442232583,-603.994374,0.00016849,2]
[354360426,1740442232594,-1000.0,0.0001687,2]
[354360428,1740442232605,-376.130461,0.00016931,2]
[354360430,1740442232615,-603.994374,0.00016931,2]
[354360432,1740442232626,-376.130461,0.00017013,2]
[354360434,1740442232636,-603.994374,0.00017013,2]
[354360436,1740442232646,-152.307001,0.00017013,2]
[354360438,1740442232656,-376.130461,0.00017095,2]
[354360440,1740442232667,-603.994374,0.00017095,2]
[354360443,1740442232677,-376.130461,0.00017178,2]
[354360445,1740442232687,-603.994374,0.00017178,2]
[354360447,1740442232697,-174.71037227,0.000172,2]
[354360449,1740442232707,-376.130461,0.0001726,2]
[354360467,1740442232988,-603.994374,0.0001726,2]
[354360468,1740442233091,-321.0,0.00017341,2]
[354360469,1740442233103,-376.130461,0.00017342,2]
[354360470,1740442233116,-603.994374,0.00017342,2]
[354360471,1740442233128,-152.307001,0.00017342,2]
[354360472,1740442233139,-376.130461,0.00017424,2]
[354360473,1740442233150,-603.994374,0.00017424,2]
[354360474,1740442233161,-376.130461,0.00017506,2]
[354360475,1740442233172,-603.994374,0.00017506,2]
[354360476,1740442233186,-376.130461,0.00017589,2]
[354360477,1740442233201,-603.994374,0.00017589,2]
[354360478,1740442233212,-152.307001,0.00017589,2]
[354360479,1740442233224,-376.130461,0.00017671,2]
[354360480,1740442233236,-603.994374,0.00017671,2]
[354360481,1740442233248,-376.130461,0.00017753,2]
[354360482,1740442233260,-603.994374,0.00017753,2]
[354360483,1740442233272,-376.130461,0.00017835,2]
[354360484,1740442233288,-603.994374,0.00017835,2]
[354360485,1740442233298,-152.307001,0.00017835,2]
[354360486,1740442233309,-376.130461,0.00017917,2]
[354360487,1740442233319,-603.994374,0.00017917,2]
[354360488,1740442233330,-376.130461,0.00018,2]
[354360489,1740442233342,-603.994374,0.00018,2]
[354360490,1740442233352,-376.130461,0.00018082,2]
[354360491,1740442233363,-603.994374,0.00018082,2]
[354360492,1740442233375,-376.130461,0.00018164,2]
[354360493,1740442233387,-603.994374,0.00018164,2]
[354360494,1740442233398,-152.307001,0.00018164,2]
[354360495,1740442233410,-376.130461,0.00018246,2]
[354360496,1740442233422,-603.994374,0.00018246,2]
[354360497,1740442233434,-376.130461,0.00018328,2]
[354360498,1740442233445,-603.994374,0.00018328,2]
[354360499,1740442233456,-155.67,0.0001863,2]
[354360500,1740442233467,-3773.5832,0.00018899,2]
[354360501,1740442233478,-6626.7212,0.000189,2]
[354360502,1740442233488,-1568.9724,0.000189,2]
[354360503,1740442233499,-2046.9164,0.000189,2]
[354360504,1740442233509,-222.7013,0.000189,2]
[354360505,1740442233520,-3696.353,0.00018999,2]
[354360506,1740442233530,-169.634,0.00018999,2]
[354360507,1740442233540,-45837.0,0.00019,2]
[354360508,1740442233551,-316.59,0.00019245,2]
[354360509,1740442233562,-500.0,0.00019299,2]
[354360510,1740442233572,-500.0,0.00019436,2]
[354360511,1740442233582,-1000.0,0.00019538,2]
[354360512,1740442233592,-300.0,0.00019538,2]
[354360513,1740442233601,-500.0,0.00019573,2]
[354360514,1740442233611,-500.0,0.0001971,2]
[354360515,1740442233621,-500.0,0.00019847,2]
[354360516,1740442233633,-4508.25025734,0.000199,2]
[354360517,1740442233643,-500.0,0.00019984,2]
[354360518,1740442233654,-501.0,0.0002,7]
[354360519,1740442233664,-500.0,0.00020121,2]
[354360520,1740442233674,-500.0,0.00020258,2]
[354360521,1740442233684,-500.0,0.00020395,2]
[354360522,1740442233695,-500.0,0.00020532,2]
[354360523,1740442233705,-500.0,0.00020669,2]
[354360524,1740442233715,-500.0,0.00020806,2]
[354360525,1740442233726,-500.0,0.00020943,2]
[354360526,1740442233736,-17251.24,0.00021063,2]
[354360527,1740442233747,-759.23,0.0002108,2]
[354360528,1740442233758,-500.0,0.0002108,2]
[354360529,1740442233768,-500.0,0.00021217,2]
[354360530,1740442233779,-500.0,0.00021354,2]
[354360531,1740442233789,-500.0,0.00021491,2]
[354360532,1740442233812,-316.59,0.00021509,2]
[354360533,1740442233824,-200.0,0.00021515,2]
[354360534,1740442233835,-500.0,0.00021628,2]
[354360535,1740442233847,-200.0,0.00021664,2]
[354360536,1740442233858,-174.64,0.00021674,2]
[354360537,1740442233869,-500.0,0.00021765,2]
[354360538,1740442233879,-167.82,0.00021858,2]
[354360539,1740442233890,-500.0,0.00021902,2]
[354360540,1740442233900,-303.02,0.00021972,30]
[354360541,1740442233911,-675.92,0.00021975,120]
[354360542,1740442233922,-1000.0,0.0002198,2]
[354360543,1740442233933,-500.0,0.00022039,2]
[354360544,1740442233943,-174.71037224,0.00022062,14]
[354360545,1740442233954,-525.06239166,0.00022176,2]
[354360546,1740442233964,-517.149428,0.00023057,2]
[354360547,1740442233974,-225.18,0.00023089,2]
[354360548,1740442233985,-316.59,0.00023773,2]
[354360549,1740442233996,-150.01,0.00023802,2]
[354360550,1740442234006,-367.99,0.00023963,2]
[354360551,1740442234017,-403.2,0.00023993,2]
[354360552,1740442234028,-250.0,0.00024065,2]
[354360553,1740442234039,-367.99,0.00024139,2]
[354360554,1740442234050,-166.48,0.00024155,2]
[354360555,1740442234061,-181.81047512,0.00024172,2]
[354360556,1740442234072,-1500.0,0.00024172,2]
[354360557,1740442234082,-367.99,0.00024316,2]
[354360558,1740442234094,-1000.0,0.00024422,2]
[354360559,1740442234104,-859.81005611,0.00024424,2]
[354360560,1740442234116,-157.97057213,0.00024424,2]
[354360561,1740442234126,-225.18,0.00024459,2]
[354360562,1740442234137,-367.99,0.00024493,2]
[354360563,1740442234147,-36372.4501,0.00024524,2]
[354360564,1740442234159,-1000.0,0.00024524,2]
[354360565,1740442234170,-2500.0,0.00024524,2]
[354360566,1740442234180,-1000.0,0.00024524,2]
[354360567,1740442234193,-164.48556361,0.00024524,2]
[354360568,1740442234203,-303.02,0.00024556,30]
[354360569,1740442234214,-1563.20700994,0.00024558,2]
[354360570,1740442234228,-1095.85967956,0.00024558,2]
[354360571,1740442234239,-500.0,0.00024584,2]
[354360572,1740442234249,-2751.0,0.0002461,2]
[354360573,1740442234260,-124801.76052684,0.00024624,2]
[354360574,1740442234271,-109802.95,0.00024624,2]
[354360575,1740442234281,-1000.0,0.00024658,2]
[354360576,1740442234293,-367.99,0.00024669,2]
[354360577,1740442234304,-367.99,0.00024846,2]
[354360578,1740442234322,-367.99,0.00025022,2]
[354360579,1740442234334,-367.99,0.00025199,2]
[354360580,1740442234346,-152.5,0.0002533,2]
[354360581,1740442234356,-367.99,0.00025375,2]
[354360582,1740442234368,-167.82,0.00025466,2]
[354360583,1740442234380,-367.99,0.00025552,2]
[354360584,1740442234390,-367.99,0.00025729,2]
[354360585,1740442234400,-321.19594011,0.00025805,2]
[354360586,1740442234412,-859.8100561,0.00025866,2]
[354360587,1740442234423,-367.99,0.00025905,2]
[354360588,1740442234434,-1563.20700992,0.00025985,2]
[354360589,1740442234444,-316.59,0.00026037,2]
[354360590,1740442234455,-367.99,0.00026082,2]
[354360591,1740442234465,-150.0,0.000261,2]
[354360592,1740442234475,-367.99,0.00026258,2]
[354360593,1740442234485,-367.99,0.00026435,2]
[354360594,1740442234495,-367.99,0.00026611,2]
[354360595,1740442234505,-367.99,0.00026788,2]
[354360596,1740442234517,-150.01,0.00026822,2]
[354360597,1740442234528,-1000.0,0.00026865,2]
[354360598,1740442234539,-367.99,0.00026965,2]
[354360599,1740442234550,-403.2,0.00026992,120]
[354360600,1740442234561,-150.0,0.00027,120]
[354360601,1740442234572,-150.0,0.00027,120]
[354360602,1740442234582,-150.0,0.00027,120]
[354360603,1740442234593,-150.0,0.00027,120]
[354360604,1740442234604,-270.58781,0.00027,120]
[354360605,1740442234614,-303.02,0.0002714,30]
[354360606,1740442234624,-367.99,0.00027141,2]
[354360607,1740442234634,-859.8100561,0.00027308,2]
[354360608,1740442234644,-367.99,0.00027318,2]
[354360609,1740442234656,-1000.0,0.00027397,12]
[354360610,1740442234667,-153.07,0.000274,7]
[354360611,1740442234677,-1563.20700992,0.00027412,2]
[354360612,1740442234689,-1000.0,0.00027671,12]
[354360613,1740442234699,-174.71037224,0.00027825,48]
[354360614,1740442234712,-1000.0,0.00027945,12]
[354360615,1740442234723,-1000.0,0.00028219,12]
[354360616,1740442234733,-157.97057213,0.00028249,2]
[354360617,1740442234743,-316.59,0.00028301,2]
[354360618,1740442234753,-155.67,0.00028493,2]
[354360619,1740442234765,-859.8100561,0.00028749,2]
[354360620,1740442234776,-1563.20700992,0.00028839,2]
[354360621,1740442234786,-1000.0,0.00029307,2]
[354360622,1740442234797,-153.0,0.00029449,2]
[354360623,1740442234807,-759.23,0.00029512,2]
[354360624,1740442234823,-303.02,0.00029724,30]
[354360625,1740442234835,-150.01,0.00029842,2]
[354360626,1740442234847,-1095.85967956,0.0002994,2]
[354360627,1740442234858,-500.0,0.00029973,5]
[354360628,1740442234869,-403.2,0.00029991,120]
[354360629,1740442234879,-100000.0,0.0003,20]
[354360630,1740442234890,-3471.34303969,0.0003,3]
[354360631,1740442234900,-152.0,0.0003,2]
[354360632,1740442234910,-859.8100561,0.00030191,2]
[354360633,1740442234922,-1563.20700992,0.00030266,2]
[354360634,1740442234932,-316.59,0.00030565,2]
[354360635,1740442234943,-100000.0,0.00031,21]
[354360636,1740442234953,-859.8100561,0.00031633,2]
[354360637,1740442234963,-1563.20700992,0.00031692,2]
[354360638,1740442234973,-150.553,0.00031732,2]
[354360639,1740442234985,-782.914,0.00031732,2]
[354360640,1740442234994,-165.0,0.00031768,120]
[354360641,1740442235004,-100000.0,0.00032,22]
[354360642,1740442235015,-157.97057213,0.00032075,2]
[354360643,1740442235025,-431.81563459,0.00032251,2]
[354360644,1740442235037,-207.17,0.000323,14]
[354360645,1740442235048,-303.02,0.00032308,30]
[354360646,1740442235058,-876.71,0.00032329,2]
[354360647,1740442235068,-150.0,0.00032375,7]
[354360648,1740442235079,-150.70845741,0.00032375,7]
[354360649,1740442235090,-431.81563459,0.00032421,2]
[354360650,1740442235102,-5700.98,0.00032531,2]
[354360651,1740442235114,-500.0,0.0003257,2]
[354360652,1740442235125,-151.0,0.0003265,2]
[354360653,1740442235138,-26182.86870441,0.0003267,2]
[354360654,1740442235155,-1148.05126673,0.00032679,2]
[354360655,1740442235166,-431.81563459,0.00032805,2]
[354360656,1740442235176,-316.59,0.00032829,2]
[354360657,1740442235193,-150.01,0.00032862,2]
[354360658,1740442235203,-500.0,0.00032876,20]
[354360659,1740442235213,-2320.6522,0.000329,2]
[354360660,1740442235227,-200.0,0.000329,12]
[354360661,1740442235239,-1254.45885,0.00032911,2]
[354360662,1740442235249,-403.2,0.0003299,120]
[354360663,1740442235259,-100000.0,0.00033,23]
[354360664,1740442235271,-61988.79423379,0.00033,10]
[354360665,1740442235281,-515.437452,0.00033,14]
[354360666,1740442235291,-500.0,0.00033,30]
[354360667,1740442235303,-200.0,0.00033,2]
[354360668,1740442235314,-859.8100561,0.00033075,2]
[354360669,1740442235326,-1563.20700992,0.00033119,2]
[354360670,1740442235338,-1135.44,0.00033129,2]
[354360671,1740442235349,-1598.1772711,0.00033222,4]
[354360672,1740442235363,-440.46,0.00033288,2]
[354360673,1740442235375,-405.06109069,0.00033299,120]
[354360674,1740442235386,-503.36,0.0003333,2]
[354360675,1740442235397,-1135.44,0.00033348,2]
[354360676,1740442235408,-150.0,0.00033438,30]
[354360677,1740442235419,-150.0,0.00033438,30]
[354360678,1740442235431,-150.0,0.00033438,30]
[354360679,1740442235442,-1598.56348324,0.00033438,30]
[354360680,1740442235453,-385.01315782,0.00033438,30]
[354360681,1740442235465,-13513.80592648,0.00033438,30]
[354360682,1740442235478,-150.0,0.00033451,2]
[354360683,1740442235489,-3415.0,0.0003347,5]
[354360684,1740442235499,-699817.52966123,0.000335,14]
[354360685,1740442235519,-43010.79713,0.000335,14]
[354360686,1740442235531,-459.748,0.000335,14]
[354360687,1740442235544,-275.83066418,0.000335,14]
[354360688,1740442235563,-4288.60192518,0.000335,14]
[354360689,1740442235576,-3059.23005502,0.000335,14]
[354360690,1740442235594,-556.26670477,0.000335,14]
[354360691,1740442235608,-1882.51646929,0.000335,14]
[354360692,1740442235626,-5169.15229107,0.000335,14]
[354360693,1740442235639,-1300.0,0.000335,14]
[354360694,1740442235673,-7893.45161813,0.000335,14]
[354360695,1740442235687,-15147.0,0.000335,14]
[354360696,1740442235714,-117139.87548113,0.000335,14]
[354360697,1740442235725,-154.82,0.000335,31]
[354360698,1740442235735,-152.0,0.00033551,3]
[354360699,1740442235746,-1135.44,0.00033566,2]
[354360700,1740442235756,-174.71037224,0.00033589,82]
[354360701,1740442235766,-200.0,0.00033599,2]
[354360702,1740442235776,-200.0,0.00033599,2]
[354360703,1740442235786,-200.0,0.00033599,2]
[354360704,1740442235796,-200.0,0.00033599,2]
[354360705,1740442235806,-200.0,0.00033599,2]
[354360706,1740442235815,-200.0,0.00033599,2]
[354360707,1740442235825,-200.0,0.00033599,2]
[354360708,1740442235836,-200.0,0.00033599,2]
[354360709,1740442235848,-200.0,0.00033599,2]
[354360710,1740442235858,-200.0,0.00033599,2]
[354360711,1740442235869,-200.0,0.00033599,2]
[354360712,1740442235880,-200.0,0.00033599,2]
[354360713,1740442235890,-200.0,0.00033599,2]
[354360714,1740442235901,-200.0,0.00033599,2]
[354360715,1740442235911,-200.0,0.00033599,2]
[354360716,1740442235923,-200.0,0.00033599,2]
[354360717,1740442235933,-200.0,0.00033599,2]
[354360718,1740442235942,-200.0,0.00033599,2]
[354360719,1740442235952,-200.0,0.00033599,2]
[354360720,1740442235962,-200.0,0.00033599,2]
[354360721,1740442235972,-200.0,0.00033599,2]
[354360722,1740442235982,-200.0,0.00033599,2]
[354360723,1740442235992,-200.0,0.00033599,2]
[354360724,1740442236002,-200.0,0.00033599,2]
[354360725,1740442236012,-213.0,0.00033599,2]
[354360726,1740442236023,-438.87591416,0.00033616,30]
[354360727,1740442236035,-500.0,0.00033698,25]
[354360728,1740442236045,-168.54162663,0.00033719,2]
[354360729,1740442236055,-281.87260939,0.00033761,30]
[354360730,1740442236065,-438.87591416,0.00033781,30]
[354360731,1740442236075,-1135.44,0.00033785,2]
[354360732,1740442236084,-150.0,0.00033835,2]
[354360733,1740442236096,-1902.0,0.00033874,2]
[354360734,1740442236106,-25191.262,0.000339,2]
[354360735,1740442236116,-500.0,0.000339,2]
[354360736,1740442236126,-221.0,0.000339,2]
[354360737,1740442236136,-2000.0,0.000339,30]
[354360738,1740442236146,-2000.0,0.000339,30]
[354360739,1740442236156,-1000.0,0.000339,2]
[354360740,1740442236182,-172.08934032,0.000339,2]
[354360741,1740442236195,-151.0,0.000339,7]
[354360742,1740442236205,-151.0,0.000339,7]
[354360743,1740442236215,-151.0,0.000339,7]
[354360744,1740442236230,-151.0,0.000339,7]
[354360745,1740442236240,-151.0,0.000339,7]
[354360746,1740442236250,-500.0,0.000339,12]
[354360747,1740442236260,-151.0,0.000339,7]
[354360748,1740442236270,-151.0,0.000339,7]
[354360749,1740442236280,-151.0,0.000339,7]
[354360750,1740442236290,-151.0,0.000339,7]
[354360751,1740442236302,-151.0,0.000339,7]
[354360752,1740442236314,-1705.74729,0.000339,7]
[354360753,1740442236326,-1705.74729,0.000339,7]
[354360754,1740442236336,-187.346049,0.000339,7]
[354360755,1740442236347,-151.0,0.000339,7]
[354360756,1740442236357,-151.0,0.000339,7]
[354360757,1740442236368,-151.0,0.000339,7]
[354360758,1740442236379,-151.0,0.000339,7]
[354360759,1740442236388,-151.0,0.000339,7]
[354360760,1740442236398,-150.0,0.00033919,2]
[354360761,1740442236409,-150.0,0.00033919,2]
[354360762,1740442236419,-438.87591416,0.00033945,30]
[354360763,1740442236429,-150.0,0.0003396,2]
[354360764,1740442236439,-150.0,0.00033962,2]
[354360765,1740442236449,-150.0,0.00033965,2]
[354360766,1740442236460,-150.0,0.00033967,2]
[354360767,1740442236470,-150.0,0.00033981,2]
[354360768,1740442236727,-4868.1792438,0.0003399,2]
[354360769,1740442236737,-3362.5564565,0.0003399,2]
[354360770,1740442236747,-4054.298536,0.0003399,2]
[354360771,1740442236756,-855.3810452,0.0003399,2]
[354360772,1740442236767,-199.23708923,0.0003399,2]
[354360773,1740442236777,-100000.0,0.00034,24]
[354360774,1740442236787,-54444.48229204,0.00034,25]
[354360775,1740442237258,-839.4699975,0.00034,25]
[354360776,1740442237272,-102562.5922873,0.00034,25]
[354360831,1740442238637,-275.677,0.00033283,2]
[354360833,1740442238647,-151.0,0.000339,7]
[354360835,1740442238656,-467.73111535,0.00034,25]
[354360838,1740442238669,-111716.0,0.00034,25]
[354360840,1740442238682,-8390.41828939,0.00034,25]
[354360842,1740442238694,-692.74999987,0.00034,25]
[354360844,1740442238705,-571.64101285,0.00034,25]
[354360846,1740442238717,-302.5407008,0.00034,25]
[354360848,1740442238729,-54289.34224471,0.00034,25]
[354360851,1740442238740,-316.2698799,0.00034,25]
[354360861,1740442238839,-459.47,0.00034,25]
[354360864,1740442238851,-5493.06988919,0.00034,25]
[354360866,1740442238863,-19429.28010987,0.00034,25]
[354360868,1740442238874,-1892.41874735,0.00034,25]
[354360870,1740442238885,-341.24596483,0.00034,25]
[354360873,1740442238897,-14972.74283365,0.00034,25]
[354360875,1740442238909,-1509.34,0.00034,25]
[354360877,1740442238921,-1845.8539949,0.00034,25]
[354360879,1740442238932,-5983.59142758,0.00034,25]
[354360881,1740442238944,-4826.65,0.00034,25]
[354360883,1740442238956,-1541.51308321,0.00034,25]
[354360885,1740442238965,-297.0,0.00034,120]
[354360887,1740442238975,-151.0,0.00034,7]
[354360889,1740442238985,-151.0,0.00034,7]
[354360892,1740442238995,-151.0,0.00034,7]
[354360894,1740442239004,-157.467845,0.00034,7]
[354360895,1740442239014,-151.0,0.00034,7]
[354360897,1740442239024,-151.0,0.00034,7]
[354360899,1740442239034,-151.357513,0.00034,7]
[354360901,1740442239043,-151.0,0.00034,7]
[354360903,1740442239053,-151.0,0.00034,7]
[354360905,1740442239063,-165.950669,0.00034,7]
[354360907,1740442239073,-151.0,0.00034,7]
[354360909,1740442239082,-151.0,0.00034,7]
[354360934,1740442239342,-151.0,0.00034,7]
[354360935,1740442239386,-151.0,0.00034,7]
[354360936,1740442239397,-151.0,0.00034,7]
[354360937,1740442239408,-151.0,0.00034,7]
[354360938,1740442239420,-151.534147,0.00034,7]
[354360939,1740442239430,-295.230823,0.00034,7]
[354360940,1740442239440,-151.0,0.00034,7]
[354360941,1740442239449,-151.688301,0.00034,7]
[354360942,1740442239459,-151.0,0.00034,7]
[354360943,1740442239469,-151.0,0.00034,7]
[354360944,1740442239479,-151.0,0.00034,7]
[354360945,1740442239490,-151.0,0.00034,7]
[354360946,1740442239500,-151.0,0.00034,7]
[354360947,1740442239511,-151.0,0.00034,7]
[354360948,1740442239522,-151.0,0.00034,7]
[354360949,1740442239532,-217.97092,0.00034,7]
[354360950,1740442239543,-151.0,0.00034,7]
[354360951,1740442239554,-151.0,0.00034,7]
[354360952,1740442239564,-151.0,0.00034,7]
[354360953,1740442239574,-261.803828,0.00034,7]
[354360955,1740442239585,-151.0,0.00034,7]
[354360957,1740442239594,-151.0,0.00034,7]
[354360959,1740442239604,-285.062662,0.00034,7]
[354360962,1740442239614,-151.0,0.00034,7]
[354360963,1740442239623,-151.0,0.00034,7]
[354360965,1740442239633,-151.0,0.00034,7]
[354360967,1740442239642,-151.0,0.00034,7]
[354360969,1740442239652,-151.0,0.00034,7]
[354360971,1740442239664,-151.0,0.00034,7]
[354360973,1740442239674,-151.0,0.00034,7]
[354360974,1740442239685,-237.233938,0.00034,7]
[354360975,1740442239696,-152.547728,0.00034,7]
[354360976,1740442239707,-151.0,0.00034,7]
[354360977,1740442239717,-151.0,0.00034,7]
[354360978,1740442239728,-151.0,0.00034,7]
[354360979,1740442239738,-151.0,0.00034,7]
[354360980,1740442239748,-151.0,0.00034,7]
[354360981,1740442239758,-151.0,0.00034,7]
[354360982,1740442239768,-151.0,0.00034,7]
[354360983,1740442239778,-229.649032,0.00034,7]
[354360985,1740442239788,-151.0,0.00034,7]
[354360987,1740442239799,-184.272323,0.00034,7]
[354360990,1740442239810,-151.0,0.00034,7]
[354360993,1740442239821,-151.0,0.00034,7]
[354360995,1740442239831,-151.0,0.00034,7]
[354360998,1740442239842,-151.0,0.00034,7]
[354361002,1740442239853,-151.0,0.00034,7]
[354361006,1740442239864,-151.0,0.00034,7]
[354361010,1740442239875,-151.0,0.00034,7]
[354361014,1740442239885,-151.0,0.00034,7]
[354361017,1740442239896,-151.0,0.00034,7]
[354361019,1740442239907,-151.0,0.00034,7]
[354361020,1740442239920,-252.672446,0.00034,7]
[354361022,1740442239930,-205.36546422,0.00034,7]
[354361025,1740442239944,-47.30698178,0.00034,7]
[354361027,1740442239954,-151.0,0.00034,7]
[354361029,1740442239964,-151.0,0.00034,7]
[354361031,1740442239974,-252.672446,0.00034,7]
[354361033,1740442239984,-252.672446,0.00034,7]
[354361035,1740442239995,-151.0,0.00034,7]
[354361037,1740442240005,-151.0,0.00034,7]
[354361038,1740442240015,-151.0,0.00034,7]
[354361040,1740442240025,-151.0,0.00034,7]
[354361042,1740442240035,-151.0,0.00034,7]
[354361044,1740442240045,-1705.74729,0.00034,7]
[354361046,1740442240055,-1705.74729,0.00034,7]
[354361048,1740442240065,-151.0,0.00034,7]
[354361050,1740442240076,-274.191876,0.00034,7]
[354361053,1740442240088,-154.82,0.00034,31]
[354361055,1740442240099,-154.82,0.00034,31]
[354361057,1740442240110,-151.0,0.00034,7]
[354361058,1740442240120,-151.0,0.00034,7]
[354361060,1740442240130,-150.0,0.00034008,2]
[354361062,1740442240141,-150.0,0.00034013,2]
[354361064,1740442240151,-150.0,0.00034062,2]
[354361066,1740442240161,-438.87591416,0.00034082,30]
[354361068,1740442240176,-150.0,0.00034083,2]
[354361071,1740442240189,-150.0,0.00034084,2]
[354361073,1740442240209,-150.0,0.00034106,2]
[354361075,1740442240219,-150.0,0.00034127,2]
[354361077,1740442240230,-150.0,0.00034127,2]
[354361078,1740442240242,-150.0,0.0003413,2]
[354361080,1740442240252,-150.0,0.00034139,2]
[354361082,1740442240262,-150.0,0.000342,2]
[354361084,1740442240272,-150.0,0.00034215,2]
[354361087,1740442240283,-1902.0,0.00034223,2]
[354361088,1740442240293,-150.0,0.00034227,2]
[354361091,1740442240303,-150.0,0.00034236,2]
[354361093,1740442240314,-150.0,0.00034238,2]
[354361095,1740442240325,-150.0,0.00034239,2]
[354361097,1740442240335,-903.96,0.00034247,2]
[354361099,1740442240344,-438.87591416,0.00034247,30]
[354361101,1740442240353,-150.0,0.00034247,2]
[354361103,1740442240363,-150.0,0.00034293,2]
[354361105,1740442240379,-150.0,0.00034293,2]
[354361107,1740442240389,-150.0,0.00034318,2]
[354361109,1740442240400,-154.82,0.000344,31]
[354361111,1740442240411,-154.82,0.000344,31]
[354361113,1740442240423,-237.1698419,0.00034411,30]
[354361115,1740442240436,-201.70607226,0.00034411,30]
[354361117,1740442240445,-150.0,0.00034414,2]
[354361119,1740442240455,-150.0,0.00034426,2]
[354361121,1740442240465,-40274.28352294,0.00034473,3]
[354361123,1740442240477,-15280.71647706,0.00034473,3]
[354361125,1740442240486,-150.0,0.00034475,2]
[354361127,1740442240496,-150.0,0.00034491,2]
[354361129,1740442240505,-150.0,0.00034492,2]
[354361131,1740442240515,-150.0,0.00034493,2]
[354361133,1740442240525,-150.0,0.00034497,2]
[354361135,1740442240535,-365.34413037,0.000345,7]
[354361138,1740442240545,-150.0,0.0003451,2]